bitfinex/quotes_BTCUSD_20250723
["timestamp","ask_amount","ask_price","bid_price","bid_amount"]
[1753274936695,0.23064258,118420.0,118410.0,0.8407173]
[1753274936905,0.23064265,118420.0,118410.0,0.84071737]
[1753274937124,0.23064265,118420.0,118410.0,0.84071744]
[1753274937585,0.22219835,118420.0,118410.0,0.84071744]
[1753274937803,0.22219835,118420.0,118410.0,0.85016231]
[1753274938019,0.03642,118420.0,118410.0,0.85860668]
[1753274938235,0.04486394,118420.0,118410.0,0.85860668]
[1753274938681,0.03642,118420.0,118410.0,0.85860668]
[1753274939987,0.04486387,118420.0,118410.0,0.54737926]
[1753274940157,0.04486387,118420.0,118410.0,0.85860668]
[1753274940372,0.22219835,118420.0,118410.0,0.85016195]
[1753274940603,0.23064258,118420.0,118410.0,0.84171715]
[1753274940811,0.03642,118420.0,118410.0,0.85860668]
[1753274941021,0.17062,118420.0,118410.0,0.95696854]
[1753274941235,0.18592,118420.0,118410.0,0.8760557]
[1753274942732,0.25,118430.0,118420.0,0.2116721]
[1753274943046,0.25,118430.0,118420.0,0.65685952]
[1753274943047,0.25214,118430.0,118420.0,0.65685952]
[1753274943247,0.27092,118430.0,118420.0,0.65685952]
[1753274943448,0.28652,118430.0,118420.0,0.65489952]
[1753274944178,0.28752,118430.0,118420.0,0.65489952]
[1753274944615,0.28852,118430.0,118420.0,0.65489952]
[1753274945259,0.27292,118430.0,118420.0,0.65489952]
[1753274945465,0.25712,118430.0,118420.0,0.65489952]
[1753274945876,0.25712,118430.0,118420.0,0.65485952]
[1753274946975,0.102,118430.0,118420.0,0.65681952]
[1753274947193,0.102,118430.0,118420.0,0.67524952]
[1753274947810,0.1,118430.0,118420.0,0.67261952]
[1753274948251,0.1,118430.0,118420.0,0.67361952]
[1753274948462,0.1,118430.0,118420.0,0.65781952]
[1753274951173,0.1,118430.0,118420.0,0.70809781]
[1753274951378,0.1,118430.0,118420.0,0.73398781]
[1753274951896,0.1,118430.0,118420.0,0.75935181]
[1753274952319,0.1,118430.0,118420.0,1.41057923]
[1753274952527,0.1,118430.0,118420.0,1.09935181]
[1753274955480,0.15,118440.0,118430.0,0.21165569]
[1753274955707,0.15,118440.0,118430.0,0.65676311]
[1753274957349,0.302,118440.0,118430.0,0.65676311]
[1753274958588,0.301,118440.0,118430.0,0.65676311]
[1753274958804,0.301,118440.0,118430.0,0.65776311]
[1753274959033,0.3,118440.0,118430.0,0.65776311]
[1753274960522,0.3,118440.0,118430.0,0.86052311]
[1753274961185,0.30214,118440.0,118430.0,0.54929569]
[1753274961408,0.15512,118440.0,118430.0,0.86052311]
[1753274961836,0.19496252,118440.0,118430.0,0.85856311]
[1753274962070,0.19496245,118440.0,118430.0,0.85856311]
[1753274962267,0.18652,118440.0,118430.0,0.85856311]
[1753274963194,0.19496245,118440.0,118430.0,0.85856311]
[1753274963433,0.37226712,118440.0,118430.0,0.71819981]
[1753274963641,0.2118482,118440.0,118430.0,0.85852311]
[1753274963855,0.2118482,118440.0,118430.0,0.85007981]
[1753274964088,0.2118482,118440.0,118430.0,0.85852311]
[1753274964311,0.39759618,118440.0,118430.0,0.85852311]
[1753274964522,0.37029122,118440.0,118430.0,0.85852311]
[1753274964740,0.3618482,118440.0,118430.0,0.85852311]
[1753274965465,0.53071007,118440.0,118430.0,0.72664311]
[1753274965688,0.68915309,118440.0,118430.0,0.85852311]
[1753274965917,0.69759618,118440.0,118430.0,0.71819981]
[1753274966129,0.90674528,118440.0,118430.0,0.20376]
[1753274966339,0.90674528,118440.0,118430.0,0.33564]
[1753274966804,1.30674528,118440.0,118430.0,0.33564]
[1753274967012,1.30674528,118440.0,118430.0,0.64686742]
[1753274967013,0.90674528,118440.0,118430.0,0.64686742]
[1753274967263,0.90674528,118440.0,118430.0,0.17831992]
[1753274967478,1.30674528,118440.0,118430.0,0.44410742]
[1753274967743,1.30674528,118440.0,118430.0,0.61298354]
[1753274967954,1.30674528,118440.0,118430.0,0.62142734]
[1753274968182,1.30674528,118440.0,118430.0,0.62987107]
[1753274968916,1.30674528,118440.0,118430.0,0.63831473]
[1753274970588,1.30674528,118440.0,118430.0,0.62987107]
[1753274970789,1.30674528,118440.0,118430.0,0.62142734]
[1753274971409,1.30674528,118440.0,118430.0,0.62987107]
[1753274971642,1.30674528,118440.0,118430.0,0.62983107]
[1753274971808,1.30674528,118440.0,118430.0,0.50643473]
[1753274972010,1.30674528,118440.0,118430.0,0.63827473]
[1753274972213,1.30674528,118440.0,118430.0,0.62983107]
[1753274972432,1.30674528,118440.0,118430.0,0.44406742]
[1753274972654,1.29830226,118440.0,118430.0,0.13284]
[1753274972914,1.29830226,118440.0,118430.0,0.44406742]
[1753274973342,1.44830226,118440.0,118430.0,0.44406742]
[1753274973569,1.29830226,118440.0,118430.0,0.44406742]
[1753274973789,1.29830226,118440.0,118430.0,0.31222742]
[1753274974020,1.29830226,118440.0,118430.0,0.44406742]
[1753274974702,1.29830226,118440.0,118430.0,0.44306742]
[1753274974952,1.29930226,118440.0,118430.0,0.44306742]
[1753274975187,1.29930226,118440.0,118430.0,0.45151122]
[1753274975656,1.29930226,118440.0,118430.0,0.62038734]
[1753274975876,1.29930226,118440.0,118430.0,0.62883107]
[1753274976112,1.29930226,118440.0,118430.0,0.63727473]
[1753274976345,1.29930226,118440.0,118430.0,0.62883107]
[1753274977104,1.29930226,118440.0,118430.0,0.44306742]
[1753274977646,1.30030226,118440.0,118430.0,0.62038734]
[1753274978011,1.30030226,118440.0,118430.0,0.62883107]
[1753274978446,1.30030226,118440.0,118430.0,0.63727473]
[1753274978931,1.13143975,118440.0,118430.0,0.64571817]
[1753274979143,0.73988241,118440.0,118430.0,0.65416147]
[1753274980348,0.74832521,118440.0,118430.0,0.65416147]
[1753274980695,0.74832514,118440.0,118430.0,0.65416147]
[1753274981161,0.73143975,118440.0,118430.0,0.65416147]
[1753274981349,0.73988241,118440.0,118430.0,0.65416147]
[1753274981590,0.6915973,118440.0,118430.0,0.65416147]
[1753274982293,0.70003975,118440.0,118430.0,0.65416147]
[1753274982514,0.70848234,118440.0,118430.0,0.65416147]
[1753274982981,0.6915973,118440.0,118430.0,0.65416147]
[1753274983202,0.70003982,118440.0,118430.0,0.34293405]
[1753274983412,0.71692507,118440.0,118430.0,0.65416147]
[1753274983623,0.93547319,118440.0,118430.0,0.64571817]
[1753274983842,0.9270306,118440.0,118430.0,0.64571832]
[1753274984052,1.0770306,118440.0,118430.0,0.65416184]
[1753274984287,0.9270306,118440.0,118430.0,0.34293442]
[1753274984524,0.91858794,118440.0,118430.0,0.628831]
[1753274984741,0.91858794,118440.0,118430.0,0.64571811]
[1753274985300,0.91858794,118440.0,118430.0,0.63727459]
[1753274985525,0.91014521,118440.0,118430.0,0.63727459]
[1753274985751,0.91014521,118440.0,118430.0,0.65416155]
[1753274986451,0.91014521,118440.0,118430.0,0.64571811]
[1753274987786,0.91014521,118440.0,118430.0,0.52232155]
[1753274988023,0.91014521,118440.0,118430.0,0.65412155]
[1753274988418,0.91014521,118440.0,118430.0,0.64567811]
[1753274988637,0.91014521,118440.0,118430.0,0.63723459]
[1753274988986,0.91014521,118440.0,118430.0,0.64567811]
[1753274989197,0.91858787,118440.0,118430.0,0.65412148]
[1753274989386,1.07703096,118440.0,118430.0,0.64567811]
[1753274989591,0.92703096,118440.0,118430.0,0.65412155]
[1753274990010,0.92703096,118440.0,118430.0,0.65412112]
[1753274990459,0.92703096,118440.0,118430.0,0.64567775]
[1753274990821,0.92703096,118440.0,118430.0,0.51387775]
[1753274991030,0.92703096,118440.0,118430.0,0.64567775]
[1753274991243,0.92703096,118440.0,118430.0,0.65412112]
[1753274991457,0.91858787,118440.0,118430.0,0.65412112]
[1753274991673,0.7497255,118440.0,118430.0,0.65412076]
[1753274992510,0.92703039,118440.0,118430.0,0.65412076]
[1753274992735,0.93547348,118440.0,118430.0,0.64567746]
[1753274993157,0.92703039,118440.0,118430.0,0.64567746]
[1753274993380,0.93547348,118440.0,118430.0,0.64567746]
[1753274993565,0.93547348,118440.0,118430.0,0.63723409]
[1753274993802,0.91858823,118440.0,118430.0,0.62879065]
[1753274994342,1.06858823,118440.0,118430.0,0.62879065]
[1753274994527,0.91858823,118440.0,118430.0,0.62879065]
[1753274994759,0.91858823,118440.0,118430.0,0.31756323]
[1753274994970,0.91858823,118440.0,118430.0,0.62879065]
[1753274995394,0.91858823,118440.0,118430.0,0.31756323]
[1753274995605,0.91858823,118440.0,118430.0,0.62879065]
[1753274995877,0.91858823,118440.0,118430.0,0.31756351]
[1753274996115,0.91014528,118440.0,118430.0,0.44302742]
[1753274996352,0.90170226,118440.0,118430.0,0.62879107]
[1753274996556,0.90170226,118440.0,118430.0,0.63723466]
[1753274996867,0.90170226,118440.0,118430.0,0.62879107]
[1753274997086,0.90170226,118440.0,118430.0,0.63723473]
[1753274997298,0.90170226,118440.0,118430.0,0.64567832]
[1753274997509,0.90170226,118440.0,118430.0,0.64563832]
[1753274997956,0.90170226,118440.0,118430.0,0.65408184]
[1753274998176,0.90170226,118440.0,118430.0,0.64563832]
[1753274998604,0.90170226,118440.0,118430.0,0.65408184]
[1753274998973,0.90170226,118440.0,118430.0,0.32596731]
[1753274999177,0.90170226,118440.0,118430.0,0.64563832]
[1753274999381,1.05170226,118440.0,118430.0,0.63719473]
[1753274999598,0.90170226,118440.0,118430.0,0.64563832]
[1753275000775,0.90170226,118440.0,118430.0,0.65408184]
[1753275001083,0.90170226,118440.0,118430.0,0.65408148]
[1753275001306,0.90170226,118440.0,118430.0,0.64563804]
[1753275001532,0.9101447,118440.0,118430.0,0.65408098]
[1753275001774,0.71663975,118440.0,118430.0,0.65408098]
[1753275001987,0.71692521,118440.0,118430.0,0.65408098]
[1753275002199,0.70848241,118440.0,118430.0,0.65408098]
[1753275002430,0.70003975,118440.0,118430.0,0.65611098]
[1753275002861,0.70848241,118440.0,118430.0,0.65611098]
[1753275003154,0.152,118440.0,118430.0,1.00078742]
[1753275003370,0.152,118440.0,118430.0,1.01841742]
[1753275003597,0.152,118440.0,118430.0,0.70719]
[1753275004764,0.152,118440.0,118430.0,1.00609]
[1753275005323,0.15,118440.0,118430.0,1.00609]
[1753275005548,0.15,118440.0,118430.0,1.00709]
[1753275011552,0.15,118440.0,118430.0,1.00446]
[1753275013364,0.15,118440.0,118430.0,0.8727]
[1753275013582,0.15,118440.0,118430.0,0.001]
[1753275013583,0.75757485,118440.0,118430.0,0.001]
[1753275013798,0.75757485,118440.0,118430.0,0.13268]
[1753275015174,0.75757485,118440.0,118420.0,0.31122742]
[1753275015414,0.29269708,118430.0,118420.0,0.31122742]
[1753275015668,0.69784708,118430.0,118420.0,0.44290742]
[1753275015945,0.70629067,118430.0,118420.0,0.44290742]
[1753275016674,0.68940342,118430.0,118420.0,0.44390742]
[1753275017362,0.68940342,118430.0,118420.0,0.13268]
[1753275018790,0.68940342,118430.0,118420.0,0.001]
[1753275019020,0.68940342,118430.0,118420.0,0.13268]
[1753275019927,0.68940342,118430.0,118420.0,0.13168]
[1753275020132,0.69040342,118430.0,118420.0,0.13168]
[1753275021308,0.69040342,118430.0,118420.0,0.12972]
[1753275022503,0.51867899,118420.0,118410.0,0.71715987]
[1753275022744,0.54071674,118420.0,118410.0,0.84039507]
[1753275022979,0.54071759,118420.0,118410.0,0.52072278]
[1753275023201,0.54071759,118420.0,118410.0,0.8319502]
[1753275023455,0.5322735,118420.0,118410.0,0.83195057]
[1753275023695,0.5322735,118420.0,118410.0,0.84039558]
[1753275023918,0.74986213,118420.0,118410.0,0.20425082]
[1753275024152,0.89986213,118420.0,118410.0,0.33593082]
[1753275024631,0.63924637,118390.0,118370.0,0.29430222]
[1753275024884,0.19943841,118380.0,118370.0,0.59708256]
[1753275025111,0.20788564,118380.0,118370.0,0.58018915]
[1753275025345,0.1994392,118380.0,118370.0,0.41122742]
[1753275025581,0.2989165,118380.0,118370.0,0.41122742]
[1753275025823,0.30616935,118380.0,118370.0,0.41122742]
[1753275026074,0.29772212,118380.0,118370.0,0.1]
[1753275026361,0.29772212,118380.0,118370.0,0.10004925]
[1753275026561,0.29772212,118380.0,118370.0,0.23172925]
[1753275027025,0.29872212,118380.0,118370.0,0.23172925]
[1753275027494,0.29872212,118380.0,118370.0,0.54295667]
[1753275027732,0.29872212,118380.0,118370.0,0.41127667]
[1753275027965,0.29872212,118380.0,118370.0,0.54295667]
[1753275028208,0.29872212,118380.0,118370.0,0.10004925]
[1753275028430,0.69872212,118380.0,118370.0,0.23172925]
[1753275029853,0.70739628,118380.0,118370.0,0.23172925]
[1753275030836,0.70739628,118380.0,118370.0,0.72036634]
[1753275031061,0.70939628,118380.0,118370.0,0.23172925]
[1753275031299,0.70939628,118380.0,118370.0,0.40913899]
[1753275031526,0.70939628,118380.0,118370.0,0.55140468]
[1753275031751,0.70939628,118380.0,118370.0,0.55140475]
[1753275031955,0.53200146,118380.0,118370.0,0.72036648]
[1753275032173,0.83675536,118380.0,118370.0,0.74770987]
[1753275032386,0.66780791,118380.0,118370.0,0.74770987]
[1753275032595,0.6374773,118380.0,118370.0,0.74770987]
[1753275032817,0.6374773,118380.0,118370.0,0.76330987]
[1753275033036,0.6374773,118380.0,118370.0,0.76593987]
[1753275033464,0.553,118380.0,118370.0,0.76593987]
[1753275033884,0.5698936,118380.0,118370.0,0.76330987]
[1753275034105,0.5698936,118380.0,118370.0,0.74770987]
[1753275035246,0.56144673,118380.0,118370.0,0.74770987]
[1753275035454,0.5698936,118380.0,118370.0,0.74770987]
[1753275035758,0.5698936,118380.0,118370.0,0.43648245]
[1753275035963,0.57834061,118380.0,118370.0,0.74770987]
[1753275036563,0.72834054,118380.0,118370.0,0.74770987]
[1753275036773,0.5698936,118380.0,118370.0,0.74770987]
[1753275037193,0.56144673,118380.0,118370.0,0.74770987]
[1753275037342,0.56989367,118380.0,118370.0,0.74770987]
[1753275037549,0.56144673,118380.0,118370.0,0.74770987]
[1753275037929,0.5698936,118380.0,118370.0,0.74770987]
[1753275038336,0.1688936,118380.0,118370.0,0.74770987]
[1753275038543,0.16044673,118380.0,118370.0,0.74770987]
[1753275038751,0.152,118380.0,118370.0,0.74770987]
[1753275038979,0.1604468,118380.0,118370.0,0.74770987]
[1753275039195,0.16044673,118380.0,118370.0,0.74770987]
[1753275039407,0.56044673,118380.0,118370.0,0.74770987]
[1753275039630,0.552,118380.0,118370.0,0.74770987]
[1753275039850,0.552,118380.0,118370.0,0.76320987]
[1753275040074,0.56044687,118380.0,118370.0,0.74770987]
[1753275040299,0.56889388,118380.0,118370.0,0.74770987]
[1753275040710,0.56044687,118380.0,118370.0,0.74770987]
[1753275040926,0.56889381,118380.0,118370.0,0.74770987]
[1753275041667,0.57099381,118380.0,118370.0,0.73926229]
[1753275041892,0.58244089,118380.0,118370.0,0.74770987]
[1753275042129,0.5571,118380.0,118370.0,0.74770987]
[1753275042358,0.5655468,118380.0,118370.0,0.74770987]
[1753275042569,0.57399374,118380.0,118370.0,0.74770987]
[1753275043198,0.75138827,118380.0,118370.0,0.74770987]
[1753275043416,0.78397676,118380.0,118370.0,0.28790693]
[1753275043661,0.77552939,118380.0,118370.0,0.73922215]
[1753275043886,0.77552939,118380.0,118370.0,0.74766987]
[1753275044122,0.86000669,118380.0,118370.0,0.10004925]
[1753275044349,0.86000669,118380.0,118370.0,0.54291667]
[1753275044350,0.46686587,118380.0,118370.0,0.54291667]
[1753275044568,0.46686587,118380.0,118370.0,0.23168925]
[1753275045443,0.46686587,118380.0,118370.0,0.7118784]
[1753275045665,0.48376018,118380.0,118370.0,0.72032648]
[1753275045867,0.48376018,118380.0,118370.0,0.73077449]
[1753275045868,0.6337596,118380.0,118370.0,0.73077449]
[1753275046044,0.62630697,118380.0,118370.0,0.73922229]
[1753275046305,0.62630697,118380.0,118370.0,0.42799487]
[1753275046536,1.17630697,118380.0,118370.0,0.73722243]
[1753275046751,1.18416017,118380.0,118370.0,0.54291667]
[1753275046962,1.18416017,118380.0,118370.0,0.55136475]
[1753275047176,1.18416017,118380.0,118370.0,0.72032648]
[1753275047388,1.1841601,118380.0,118370.0,0.72877442]
[1753275047599,1.1841601,118380.0,118370.0,0.72032648]
[1753275047813,1.1841601,118380.0,118370.0,0.73722243]
[1753275048020,1.1841601,118380.0,118370.0,0.7456703]
[1753275048403,1.19260747,118380.0,118370.0,0.73722243]
[1753275048562,1.19260747,118380.0,118370.0,0.7456703]
[1753275048777,1.19260747,118380.0,118370.0,0.54291667]
[1753275048986,1.18416046,118380.0,118370.0,0.54291667]
[1753275049409,1.17571331,118380.0,118370.0,0.54291667]
[1753275049861,1.17571331,118380.0,118370.0,0.23168925]
[1753275050121,1.16726601,118380.0,118370.0,0.54291667]
[1753275051642,1.16726601,118380.0,118370.0,0.41127667]
[1753275051871,1.16726601,118380.0,118370.0,0.23168925]
[1753275051872,0.76726601,118380.0,118370.0,0.23168925]
[1753275052340,5.81726601,118380.0,118370.0,0.23168925]
[1753275052768,0.76726601,118380.0,118370.0,0.23168925]
[1753275053003,5.81726601,118380.0,118370.0,0.23168925]
[1753275053633,5.96731458,118380.0,118370.0,0.23168925]
[1753275054515,5.96731458,118380.0,118370.0,0.10004925]
[1753275054750,5.96731458,118380.0,118370.0,0.23168925]
[1753275055652,0.17749963,118310.0,118300.0,0.0002]
[1753275055892,0.91247939,118310.0,118300.0,0.00024925]
[1753275056156,0.74110126,118310.0,118300.0,0.45184975]
[1753275056402,0.55021976,118310.0,118300.0,0.63998682]
[1753275056663,0.55021976,118310.0,118300.0,0.9910694]
[1753275056939,0.55021976,118310.0,118300.0,0.9911894]
[1753275057196,0.01574246,118310.0,118300.0,1.1082667]
[1753275057432,0.16570806,118310.0,118300.0,0.8849895]
[1753275057660,0.16570806,118310.0,118300.0,1.0170695]
[1753275058366,0.16570806,118310.0,118300.0,1.03751852]
[1753275058617,0.31570806,118310.0,118300.0,1.03751852]
[1753275058828,0.31570806,118310.0,118300.0,1.03951852]
[1753275060897,0.31570806,118310.0,118300.0,0.735051]
[1753275061107,0.31570806,118310.0,118300.0,1.03951852]
[1753275061320,0.31570806,118310.0,118300.0,1.03943852]
[1753275061819,0.31570806,118310.0,118300.0,0.90743852]
[1753275062078,0.31570806,118310.0,118300.0,1.03935852]
[1753275063329,0.31570806,118310.0,118300.0,1.35254792]
[1753275063555,0.31570806,118310.0,118300.0,1.34382604]
[1753275065842,0.16570806,118310.0,118300.0,1.34382604]
[1753275066099,0.16570806,118310.0,118300.0,1.42830334]
[1753275069608,0.16570806,118310.0,118300.0,1.45381351]
[1753275069873,0.16570806,118310.0,118300.0,0.00524925]
[1753275069874,0.441067,118310.0,118300.0,0.00524925]
[1753275070122,0.923267,118310.0,118300.0,0.13700925]
[1753275070365,0.59106664,118310.0,118300.0,0.44379677]
[1753275070599,0.59951915,118310.0,118300.0,0.44379677]
[1753275070825,0.59106686,118310.0,118300.0,0.30671677]
[1753275071086,0.59951915,118310.0,118300.0,0.00324925]
[1753275071308,0.59951915,118310.0,118300.0,0.13556925]
[1753275071534,0.59951915,118310.0,118300.0,0.13656925]
[1753275071745,0.59951858,118310.0,118300.0,0.31408389]
[1753275071968,0.69951851,118310.0,118300.0,0.31404389]
[1753275072199,0.69951851,118310.0,118300.0,0.30555095]
[1753275072417,0.70797073,118310.0,118300.0,0.13648925]
[1753275072826,0.72266707,118310.0,118300.0,0.00224925]
[1753275073038,0.72266707,118310.0,118300.0,0.13668925]
[1753275073958,0.72266707,118310.0,118300.0,0.00124925]
[1753275074197,0.72266707,118310.0,118300.0,0.13564925]
[1753275074425,0.72366707,118310.0,118300.0,0.13464925]
[1753275074859,0.72463084,118310.0,118300.0,0.13464925]
[1753275075781,0.72463084,118310.0,118300.0,0.13456925]
[1753275076013,0.72463084,118310.0,118300.0,0.00024925]
[1753275076244,0.72463084,118310.0,118300.0,0.13456925]
[1753275078478,0.72463084,118310.0,118300.0,0.00024925]
[1753275078728,0.72463084,118310.0,118300.0,0.13440925]
[1753275079676,1.06463084,118310.0,118300.0,0.13432925]
[1753275080596,0.32757433,118260.0,118250.0,0.07134232]
[1753275080822,0.44956484,118260.0,118250.0,0.21773326]
[1753275081039,0.44956469,118260.0,118250.0,0.14639101]
[1753275081268,0.44956469,118260.0,118240.0,0.05345592]
[1753275081269,0.186046,118250.0,118240.0,0.05345592]
[1753275081481,0.01567183,118250.0,118240.0,0.70114913]
[1753275081731,0.33751407,118250.0,118240.0,0.37923287]
[1753275081946,0.34597007,118250.0,118240.0,0.37923287]
[1753275082189,0.33751392,118250.0,118240.0,0.37923287]
[1753275082424,0.34597022,118250.0,118240.0,0.68374039]
[1753275082650,0.41353514,118250.0,118240.0,0.68774039]
[1753275082889,0.42199129,118250.0,118240.0,0.54562039]
[1753275083109,0.41353514,118250.0,118240.0,0.68370039]
[1753275083352,0.31567183,118250.0,118240.0,0.69960039]
[1753275083597,0.31566862,118250.0,118240.0,0.69960039]
[1753275083838,0.31566862,118250.0,118240.0,0.56452039]
[1753275084068,0.71566862,118250.0,118240.0,0.70252039]
[1753275084321,0.8219883,118250.0,118240.0,0.37694287]
[1753275084562,0.8219883,118250.0,118240.0,0.37894287]
[1753275084783,0.8219883,118250.0,118240.0,0.24098287]
[1753275085029,0.83890132,118250.0,118240.0,0.69178733]
[1753275085256,0.83890125,118250.0,118240.0,0.69578733]
[1753275085490,0.80014592,118250.0,118240.0,0.69795733]
[1753275085946,0.813782,118250.0,118240.0,0.69795733]
[1753275086166,0.8222383,118250.0,118240.0,0.69795733]
[1753275086458,0.813782,118250.0,118240.0,0.69578733]
[1753275086699,0.65532592,118250.0,118240.0,0.69788733]
[1753275086912,0.65860193,118250.0,118240.0,0.69788733]
[1753275087136,0.65219592,118250.0,118240.0,0.69788733]
[1753275087359,0.56566862,118250.0,118240.0,0.74916635]
[1753275087589,0.47297192,118250.0,118240.0,0.0420069]
[1753275087796,0.45717149,118250.0,118240.0,0.1799669]
[1753275088034,0.44982786,118250.0,118240.0,0.48443442]
[1753275088242,0.60828444,118250.0,118240.0,0.1799669]
[1753275088444,0.60828451,118250.0,118240.0,0.1799669]
[1753275088674,0.60828451,118250.0,118240.0,0.1759669]
[1753275088924,0.5913722,118250.0,118240.0,0.0380069]
[1753275089134,0.9913722,118250.0,118240.0,0.1739669]
[1753275089806,0.98291555,118250.0,118240.0,0.34311439]
[1753275090030,1.09982829,118250.0,118240.0,0.65291928]
[1753275090276,1.0913722,118250.0,118240.0,0.1708069]
[1753275090497,1.08291569,118250.0,118240.0,0.1707669]
[1753275091370,1.08291562,118250.0,118240.0,0.34837169]
[1753275091571,1.09982765,118250.0,118240.0,0.35682885]
[1753275091820,1.11674081,118250.0,118240.0,0.34837169]
[1753275092029,0.7082848,118250.0,118240.0,0.33991439]
[1753275092245,0.69982857,118250.0,118240.0,0.1707669]
[1753275092462,1.09982857,118250.0,118240.0,0.1707669]
[1753275092669,1.09982857,118250.0,118200.0,6e-05]
[1753275092670,0.33610895,118210.0,118200.0,6e-05]
[1753275092889,0.55014592,118210.0,118200.0,0.63921209]
[1753275093126,0.40014592,118210.0,118200.0,0.52004209]
[1753275093344,0.40014592,118210.0,118200.0,0.65541209]
[1753275093552,0.25014592,118210.0,118200.0,0.65541209]
[1753275093757,0.25014592,118210.0,118200.0,0.65804209]
[1753275093970,0.25063711,118210.0,118200.0,0.65800209]
[1753275094191,0.25063711,118210.0,118200.0,0.65537209]
[1753275094416,0.25063711,118210.0,118200.0,0.65800209]
[1753275094626,0.16615981,118210.0,118200.0,0.71600051]
[1753275094848,0.16615981,118210.0,118200.0,0.69145111]
[1753275095277,0.55581711,118210.0,118200.0,0.02543984]
[1753275095486,0.55581711,118210.0,118200.0,0.48219241]
[1753275095722,0.55581711,118210.0,118200.0,0.81481225]
[1753275095956,0.56427613,118210.0,118200.0,0.50960752]
[1753275096154,0.55581711,118210.0,118200.0,0.64760752]
[1753275096361,0.75038472,118210.0,118200.0,0.82527248]
[1753275096783,0.75884409,118210.0,118200.0,0.64760752]
[1753275097004,0.75869828,118210.0,118200.0,0.64752752]
[1753275097243,0.75869828,118210.0,118200.0,0.00506]
[1753275097244,0.78183919,118210.0,118200.0,0.00506]
[1753275097453,0.78183919,118210.0,118200.0,0.14298]
[1753275097677,0.78183919,118210.0,118200.0,0.14098]
[1753275097892,0.78183919,118210.0,118200.0,0.00306]
[1753275098120,0.78183919,118210.0,118200.0,0.13818]
[1753275098549,0.75023919,118210.0,118200.0,6e-05]
[1753275098764,0.75869863,118210.0,118200.0,0.32430505]
[1753275099001,0.74178003,118210.0,118200.0,6e-05]
[1753275099440,5.82338003,118210.0,118200.0,6e-05]
[1753275099652,5.82338003,118210.0,118200.0,0.13822]
[1753275099864,5.82338003,118210.0,118200.0,6e-05]
[1753275100070,5.82338003,118210.0,118200.0,0.13818]
[1753275100511,5.82335962,118210.0,118200.0,0.13818]
[1753275100752,5.82335962,118210.0,118200.0,6e-05]
[1753275100934,6.16335962,118210.0,118200.0,0.13814]
[1753275101142,6.16335962,118210.0,118200.0,6e-05]
[1753275101345,6.16335962,118210.0,118200.0,0.13814]
[1753275102040,6.23380864,118210.0,118200.0,6e-05]
[1753275102259,6.73827616,118210.0,118200.0,0.13806]
[1753275102478,6.73827616,118210.0,118180.0,0.0202]
[1753275102479,1.15684044,118190.0,118180.0,0.0202]
[1753275102682,6.30901595,118190.0,118180.0,0.1582]
[1753275102890,6.31214595,118190.0,118180.0,0.0202]
[1753275103102,6.31214595,118190.0,118180.0,0.15816]
[1753275103317,6.31214595,118190.0,118180.0,0.0202]
[1753275103509,6.41214595,118190.0,118180.0,0.0202]
[1753275103739,6.66661347,118190.0,118180.0,0.0202]
[1753275103946,6.71761347,118190.0,118180.0,0.15816]
[1753275104285,6.36314595,118190.0,118180.0,0.15812]
[1753275104698,6.41314595,118190.0,118180.0,0.0202]
[1753275104897,6.41414595,118190.0,118180.0,0.15808]
[1753275105100,6.41414595,118190.0,118180.0,0.0202]
[1753275105383,6.38159497,118190.0,118180.0,0.0202]
[1753275105487,6.41414595,118190.0,118180.0,0.0202]
[1753275105768,6.71861347,118190.0,118180.0,0.16064]
[1753275106012,6.36414595,118190.0,118180.0,0.16064]
[1753275106236,6.41414595,118190.0,118180.0,0.16064]
[1753275106457,6.31414595,118190.0,118180.0,0.16064]
[1753275106685,6.36414595,118190.0,118180.0,0.16064]
[1753275106916,6.34849774,118190.0,118180.0,0.0202]
[1753275107175,6.31412959,118190.0,118180.0,0.0202]
[1753275107382,6.31412959,118190.0,118180.0,0.16072]
[1753275107588,6.36412959,118190.0,118180.0,0.16072]
[1753275107800,6.31412959,118190.0,118180.0,0.16072]
[1753275108265,6.31412959,118190.0,118180.0,0.16068]
[1753275108500,6.29892959,118190.0,118180.0,0.16068]
[1753275108931,6.28342959,118190.0,118180.0,0.15051821]
[1753275109971,6.28342434,118190.0,118180.0,0.15043821]
[1753275112276,6.28346434,118190.0,118180.0,0.15043821]
[1753275112717,6.28346434,118190.0,118180.0,0.14027679]
[1753275113570,6.13346434,118190.0,118180.0,0.31797175]
[1753275113703,0.75192508,118190.0,118180.0,0.62243927]
[1753275113905,0.75192508,118190.0,118180.0,0.46166756]
[1753275114163,0.74346449,118190.0,118180.0,0.14027679]
[1753275114751,0.74346449,118190.0,118180.0,0.14873838]
[1753275114956,0.74346449,118190.0,118180.0,0.31797182]
[1753275115223,0.74346449,118190.0,118180.0,0.32643341]
[1753275115517,0.75192544,118190.0,118180.0,0.45320597]
[1753275116164,0.75192544,118190.0,118180.0,0.63090093]
[1753275116588,0.19461771,118180.0,118170.0,0.17795276]
[1753275116812,0.29139995,118180.0,118170.0,0.30941087]
[1753275117010,0.29986161,118180.0,118170.0,0.63290293]
[1753275117226,0.29986161,118180.0,118170.0,0.63290301]
[1753275117429,0.69986161,118180.0,118170.0,0.63290293]
[1753275117641,0.69986161,118180.0,118170.0,0.64136502]
[1753275117845,0.69986161,118180.0,118170.0,0.64136517]
[1753275118032,0.69986161,118180.0,118170.0,0.64136524]
[1753275118267,0.69986161,118180.0,118170.0,0.64136517]
[1753275118472,0.69986161,118180.0,118170.0,0.64136532]
[1753275118730,5.74945974,118180.0,118170.0,0.14000318]
[1753275118951,0.28295974,118180.0,118170.0,0.14000318]
[1753275119140,5.33295974,118180.0,118170.0,0.14000318]
[1753275119373,5.34142119,118180.0,118170.0,0.14000318]
[1753275119576,5.34142119,118180.0,118170.0,0.4444707]
[1753275120025,5.34142119,118180.0,118170.0,0.14000318]
[1753275120245,0.29142119,118180.0,118170.0,0.4444707]
[1753275120471,0.29142119,118180.0,118170.0,0.48242063]
[1753275120692,0.29142076,118180.0,118170.0,0.63060279]
[1753275120923,0.28835076,118180.0,118170.0,0.63270279]
[1753275121166,0.10012471,118180.0,118170.0,0.64116488]
[1753275121389,0.10012471,118180.0,118170.0,0.68465676]
[1753275121604,0.25012471,118180.0,118170.0,0.68465676]
[1753275122017,0.25012471,118180.0,118170.0,0.68202676]
[1753275122680,0.25012471,118180.0,118170.0,0.68302676]
[1753275123636,0.25012471,118180.0,118170.0,0.68502676]
[1753275124467,0.25012471,118180.0,118170.0,0.68765676]
[1753275124681,0.25012471,118180.0,118170.0,0.38318924]
[1753275124898,0.25012471,118180.0,118170.0,0.68765676]
[1753275125943,0.16564741,118180.0,118170.0,0.70510578]
[1753275126163,0.16564741,118180.0,118170.0,1.04510578]
[1753275126443,0.16564741,118180.0,118170.0,0.70510578]
[1753275126643,0.16564741,118180.0,118170.0,0.78958308]